[Event "Late-Titled-Tuesday-Blitz-September-05-2023"]
[Site "Chess.com"]
[Date "2023.09.05"]
[Round "7"]
[White "karinachess1"]
[Black "Gogolev_Artemy"]
[Result "0-1"]
[WhiteElo "2550"]
[BlackElo "2447"]
[TimeControl "180+1"]
[EndTime "15:18:31 PDT"]
[Termination "Gogolev_Artemy won on time"]

1. c4 {[%clk 0:02:59.8]} 1... c6 {[%clk 0:02:59]} 2. d4 {[%clk 0:02:59.3]} 2...
d5 {[%clk 0:02:59.4]} 3. Nf3 {[%clk 0:02:59.9]} 3... Nf6 {[%clk 0:02:59.7]} 4.
g3 {[%clk 0:03:00.5]} 4... Bf5 {[%clk 0:02:59.3]} 5. Qb3 {[%clk 0:03:00.1]} 5...
Qb6 {[%clk 0:02:56.3]} 6. Nc3 {[%clk 0:03:00.5]} 6... e6 {[%clk 0:02:55.9]} 7.
c5 {[%clk 0:03:01]} 7... Qxb3 {[%clk 0:02:54.7]} 8. axb3 {[%clk 0:03:01.9]} 8...
h6 {[%clk 0:02:53.3]} 9. b4 {[%clk 0:02:41]} 9... a6 {[%clk 0:02:50.6]} 10. b5
{[%clk 0:02:36.7]} 10... Be7 {[%clk 0:02:33.8]} 11. Ne5 {[%clk 0:02:25.7]} 11...
Nfd7 {[%clk 0:02:30]} 12. Nxd7 {[%clk 0:02:03]} 12... Kxd7 {[%clk 0:02:30.9]}
13. f3 {[%clk 0:02:03.6]} 13... cxb5 {[%clk 0:02:28]} 14. e4 {[%clk 0:01:59.8]}
14... dxe4 {[%clk 0:02:27.1]} 15. fxe4 {[%clk 0:01:59.9]} 15... Bg6 {[%clk
0:02:27.7]} 16. Bxb5+ {[%clk 0:01:58.4]} 16... Nc6 {[%clk 0:02:27]} 17. Bc4
{[%clk 0:01:46.5]} 17... Nxd4 {[%clk 0:02:23.7]} 18. O-O {[%clk 0:01:27.1]}
18... Bxc5 {[%clk 0:02:22.5]} 19. Kg2 {[%clk 0:01:22.2]} 19... b5 {[%clk
0:02:20.6]} 20. Bd3 {[%clk 0:01:19.5]} 20... Ke7 {[%clk 0:02:18]} 21. Be3 {[%clk
0:01:17.6]} 21... Rhd8 {[%clk 0:02:16.6]} 22. Rad1 {[%clk 0:01:16.4]} 22... Nb3
{[%clk 0:02:03]} 23. Bf4 {[%clk 0:01:13.4]} 23... Bd4 {[%clk 0:01:54.8]} 24. Bc2
{[%clk 0:01:10.1]} 24... Nc5 {[%clk 0:01:51.6]} 25. b4 {[%clk 0:00:48.1]} 25...
Nb7 {[%clk 0:01:25.5]} 26. Ne2 {[%clk 0:00:48.1]} 26... Bb6 {[%clk 0:01:25.3]}
27. h3 {[%clk 0:00:38.9]} 27... f6 {[%clk 0:01:19.6]} 28. Bb1 {[%clk 0:00:28.8]}
28... e5 {[%clk 0:01:18]} 29. Bc1 {[%clk 0:00:26.3]} 29... Nd6 {[%clk
0:01:17.3]} 30. Nc3 {[%clk 0:00:25.9]} 30... Bf7 {[%clk 0:01:14.3]} 31. Rd2
{[%clk 0:00:15.4]} 31... Nc4 {[%clk 0:01:13.6]} 32. Rxd8 {[%clk 0:00:14.9]}
32... Rxd8 {[%clk 0:01:14.5]} 33. Ba2 {[%clk 0:00:13.9]} 33... Rd3 {[%clk
0:01:09.1]} 34. Rf3 {[%clk 0:00:13.2]} 34... Rxf3 {[%clk 0:00:49.7]} 35. Kxf3
{[%clk 0:00:14.1]} 35... Bd4 {[%clk 0:00:48.5]} 36. Ne2 {[%clk 0:00:12]} 36...
Bb6 {[%clk 0:00:21.6]} 37. Bb1 {[%clk 0:00:11.9]} 37... Nd6 {[%clk 0:00:20.7]}
38. Nc3 {[%clk 0:00:10.8]} 38... Bc4 {[%clk 0:00:20.5]} 39. Be3 {[%clk 0:00:09]}
39... Bd4 {[%clk 0:00:18.3]} 40. Nd1 {[%clk 0:00:07.7]} 40... Bb3 {[%clk
0:00:17.2]} 41. Nf2 {[%clk 0:00:07.4]} 41... Nc4 {[%clk 0:00:17.2]} 42. Bxd4
{[%clk 0:00:06.4]} 42... exd4 {[%clk 0:00:18.1]} 43. Bd3 {[%clk 0:00:05.8]}
43... Ne5+ {[%clk 0:00:18]} 44. Ke2 {[%clk 0:00:06]} 44... Bc4 {[%clk
0:00:18.4]} 45. Bxc4 {[%clk 0:00:04.9]} 45... bxc4 {[%clk 0:00:19.3]} 46. Kd2
{[%clk 0:00:05.3]} 46... Kd6 {[%clk 0:00:19.4]} 47. Nd1 {[%clk 0:00:05.2]} 47...
Kc6 {[%clk 0:00:18.9]} 48. Nf2 {[%clk 0:00:01.1]} 48... Kb5 {[%clk 0:00:18.7]}
49. Ng4 {[%clk 0:00:02]} 49... Nxg4 {[%clk 0:00:18.9]} 50. hxg4 {[%clk
0:00:02.9]} 50... Kxb4 {[%clk 0:00:19.2]} 51. e5 {[%clk 0:00:03.5]} 51... fxe5
{[%clk 0:00:19.2]} 52. g5 {[%clk 0:00:03.3]} 52... hxg5 {[%clk 0:00:19]} 0-1

[Event "Late-Titled-Tuesday-Blitz-September-05-2023"]
[Site "Chess.com"]
[Date "2023.09.05"]
[Round "7"]
[White "AlexNovitz"]
[Black "jjbolanos"]
[Result "1-0"]
[WhiteElo "2218"]
[BlackElo "2061"]
[TimeControl "180+1"]
[EndTime "15:18:33 PDT"]
[Termination "AlexNovitz won on time"]

1. e4 {[%clk 0:03:00.9]} 1... c5 {[%clk 0:02:58.5]} 2. Nf3 {[%clk 0:03:00.4]}
2... e6 {[%clk 0:02:58.9]} 3. d4 {[%clk 0:02:59.8]} 3... cxd4 {[%clk 0:02:59.2]}
4. Nxd4 {[%clk 0:03:00.7]} 4... a6 {[%clk 0:02:59.4]} 5. Nc3 {[%clk 0:03:00.9]}
5... Qc7 {[%clk 0:02:57.9]} 6. a3 {[%clk 0:02:58.8]} 6... Nf6 {[%clk 0:02:57.7]}
7. Bd3 {[%clk 0:02:58.2]} 7... b5 {[%clk 0:02:58]} 8. O-O {[%clk 0:02:57.3]}
8... Bb7 {[%clk 0:02:58.5]} 9. Qe2 {[%clk 0:02:55.3]} 9... d6 {[%clk 0:02:57.3]}
10. Bg5 {[%clk 0:02:49.9]} 10... Be7 {[%clk 0:02:57.3]} 11. Rae1 {[%clk
0:02:47.3]} 11... O-O {[%clk 0:02:57]} 12. Be3 {[%clk 0:02:45.9]} 12... Nbd7
{[%clk 0:02:56.5]} 13. f4 {[%clk 0:02:45.1]} 13... Nc5 {[%clk 0:02:16.7]} 14.
Bf2 {[%clk 0:02:43.8]} 14... d5 {[%clk 0:02:13.8]} 15. e5 {[%clk 0:02:41.4]}
15... Nfe4 {[%clk 0:02:05.1]} 16. Bxe4 {[%clk 0:02:16.6]} 16... dxe4 {[%clk
0:02:06]} 17. b4 {[%clk 0:02:07.4]} 17... Nd3 {[%clk 0:01:40.1]} 18. cxd3 {[%clk
0:02:03.7]} 18... Qxc3 {[%clk 0:01:40.1]} 19. dxe4 {[%clk 0:01:58.7]} 19... Qxa3
{[%clk 0:01:39.8]} 20. f5 {[%clk 0:01:54.6]} 20... Bxb4 {[%clk 0:01:11.7]} 21.
Rd1 {[%clk 0:01:54.4]} 21... exf5 {[%clk 0:00:54.2]} 22. exf5 {[%clk 0:01:44.8]}
22... Be7 {[%clk 0:00:16.7]} 23. Rd3 {[%clk 0:01:37.2]} 23... Qb4 {[%clk
0:00:15.2]} 24. Rg3 {[%clk 0:01:31.2]} 24... Bh4 {[%clk 0:00:14]} 25. Rxg7+
{[%clk 0:01:23.4]} 25... Kxg7 {[%clk 0:00:14.9]} 26. Qg4+ {[%clk 0:01:23.6]}
26... Kh8 {[%clk 0:00:15.4]} 27. Bxh4 {[%clk 0:01:22.2]} 27... f6 {[%clk
0:00:06.8]} 28. Bxf6+ {[%clk 0:01:19.1]} 28... Rxf6 {[%clk 0:00:07]} 29. exf6
{[%clk 0:01:19.7]} 29... Rg8 {[%clk 0:00:07.3]} 30. Qxg8+ {[%clk 0:00:17.6]}
30... Kxg8 {[%clk 0:00:08.2]} 31. Ne6 {[%clk 0:00:10.5]} 31... Qe4 {[%clk
0:00:04.7]} 32. f7+ {[%clk 0:00:08.9]} 32... Kxf7 {[%clk 0:00:04.8]} 33. Ng5+
{[%clk 0:00:09.1]} 33... Kf6 {[%clk 0:00:03.8]} 34. Nxe4+ {[%clk 0:00:09.8]}
34... Bxe4 {[%clk 0:00:04.7]} 35. h4 {[%clk 0:00:08.9]} 35... b4 {[%clk
0:00:05.2]} 36. g4 {[%clk 0:00:09.1]} 36... b3 {[%clk 0:00:05.7]} 37. g5+ {[%clk
0:00:09.7]} 37... Ke5 {[%clk 0:00:05.6]} 38. Rf2 {[%clk 0:00:10]} 38... a5
{[%clk 0:00:03.4]} 39. f6 {[%clk 0:00:09.7]} 39... Bg6 {[%clk 0:00:03.9]} 40.
Rb2 {[%clk 0:00:05.1]} 40... a4 {[%clk 0:00:04]} 41. Kf2 {[%clk 0:00:05.3]}
41... Kd4 {[%clk 0:00:04.2]} 42. Kg3 {[%clk 0:00:03.8]} 42... Kc3 {[%clk
0:00:04.9]} 43. h5 {[%clk 0:00:03.2]} 43... Bxh5 {[%clk 0:00:03.2]} 44. Rf2
{[%clk 0:00:03.6]} 44... Bf7 {[%clk 0:00:02.7]} 45. Rh2 {[%clk 0:00:02.4]} 45...
Bg6 {[%clk 0:00:01.3]} 46. Rxh7 {[%clk 0:00:03.3]} 1-0

[Event "Late-Titled-Tuesday-Blitz-September-05-2023"]
[Site "Chess.com"]
[Date "2023.09.05"]
[Round "7"]
[White "Colombiano07"]
[Black "FredddieCroderg"]
[Result "1-0"]
[WhiteElo "2410"]
[BlackElo "2289"]
[TimeControl "180+1"]
[EndTime "15:18:37 PDT"]
[Termination "Colombiano07 won by resignation"]

1. d4 {[%clk 0:03:00.6]} 1... d6 {[%clk 0:02:58.3]} 2. e4 {[%clk 0:03:00.1]}
2... e5 {[%clk 0:02:58.3]} 3. Nf3 {[%clk 0:02:59.6]} 3... exd4 {[%clk
0:02:57.4]} 4. Qxd4 {[%clk 0:02:59.3]} 4... Nf6 {[%clk 0:02:47.2]} 5. Nc3 {[%clk
0:02:58.5]} 5... a6 {[%clk 0:02:47.6]} 6. Bg5 {[%clk 0:02:57.7]} 6... Be7 {[%clk
0:02:47.6]} 7. O-O-O {[%clk 0:02:57.2]} 7... Nc6 {[%clk 0:02:48.2]} 8. Qe3
{[%clk 0:02:56.5]} 8... O-O {[%clk 0:02:30.3]} 9. h3 {[%clk 0:02:56.4]} 9... Be6
{[%clk 0:01:59.2]} 10. e5 {[%clk 0:02:55.1]} 10... Ne8 {[%clk 0:01:57.9]} 11.
Bxe7 {[%clk 0:02:54.5]} 11... Qxe7 {[%clk 0:01:58.8]} 12. Bd3 {[%clk 0:02:46.2]}
12... dxe5 {[%clk 0:01:47.2]} 13. Nxe5 {[%clk 0:02:47.1]} 13... Nxe5 {[%clk
0:01:45]} 14. Qxe5 {[%clk 0:02:48]} 14... Nd6 {[%clk 0:01:41.3]} 15. Rhe1 {[%clk
0:02:47.3]} 15... Rfe8 {[%clk 0:01:31.1]} 16. f4 {[%clk 0:02:39]} 16... Qh4
{[%clk 0:01:11]} 17. Qg5 {[%clk 0:02:17.8]} 17... Qxg5 {[%clk 0:01:10.1]} 18.
fxg5 {[%clk 0:02:18.7]} 18... b5 {[%clk 0:01:01.4]} 19. b3 {[%clk 0:02:16.3]}
19... Rad8 {[%clk 0:00:48.4]} 20. g4 {[%clk 0:02:15.8]} 20... Nb7 {[%clk
0:00:34.1]} 21. Bf5 {[%clk 0:02:12.7]} 21... Bxf5 {[%clk 0:00:30.4]} 22. gxf5
{[%clk 0:02:13.6]} 22... Nd6 {[%clk 0:00:30.5]} 23. Nd5 {[%clk 0:01:56.4]} 23...
Nxf5 {[%clk 0:00:21.1]} 24. Nxc7 {[%clk 0:01:49.9]} 24... Rxe1 {[%clk
0:00:19.4]} 25. Rxe1 {[%clk 0:01:50.8]} 25... Rc8 {[%clk 0:00:14.6]} 26. Nxa6
{[%clk 0:01:47.4]} 26... Nd4 {[%clk 0:00:14.8]} 27. Nb4 {[%clk 0:01:40.9]} 27...
Nf3 {[%clk 0:00:12.7]} 28. Rd1 {[%clk 0:01:35.5]} 28... Nxg5 {[%clk 0:00:12.7]}
29. Rd5 {[%clk 0:01:33.9]} 29... Nxh3 {[%clk 0:00:12.8]} 30. Rxb5 {[%clk
0:01:34.6]} 30... Nf4 {[%clk 0:00:12.4]} 31. a4 {[%clk 0:01:34.4]} 31... h5
{[%clk 0:00:12.5]} 32. Rf5 {[%clk 0:01:33.3]} 32... Ne6 {[%clk 0:00:05.4]} 33.
Rxh5 {[%clk 0:01:31.3]} 33... Nd4 {[%clk 0:00:06]} 34. Kb2 {[%clk 0:01:25.9]}
34... g6 {[%clk 0:00:06.3]} 35. Rd5 {[%clk 0:01:25.4]} 35... Ne6 {[%clk
0:00:06.7]} 36. a5 {[%clk 0:01:25.5]} 36... g5 {[%clk 0:00:07.1]} 37. Rd3 {[%clk
0:01:20.9]} 37... Kg7 {[%clk 0:00:06.9]} 38. a6 {[%clk 0:01:21.2]} 38... g4
{[%clk 0:00:06.2]} 39. Nd5 {[%clk 0:01:10.4]} 39... Ra8 {[%clk 0:00:02.8]} 40.
Ne3 {[%clk 0:01:04.2]} 40... Rxa6 {[%clk 0:00:01.7]} 41. Nxg4 {[%clk 0:01:04.8]}
41... Rb6 {[%clk 0:00:01.8]} 42. Ne5 {[%clk 0:01:02.4]} 42... Rb5 {[%clk
0:00:02.2]} 43. Rg3+ {[%clk 0:01:00.6]} 43... Kf6 {[%clk 0:00:01.9]} 44. Nc4
{[%clk 0:01:01.5]} 44... Ke7 {[%clk 0:00:02]} 45. Rf3 {[%clk 0:00:55.6]} 45...
Rb7 {[%clk 0:00:02.9]} 46. Rxf7+ {[%clk 0:00:53]} 46... Kxf7 {[%clk 0:00:02.4]}
47. Nd6+ {[%clk 0:00:53.7]} 47... Ke7 {[%clk 0:00:03.1]} 48. Nxb7 {[%clk
0:00:54.6]} 48... Kd7 {[%clk 0:00:03.5]} 49. Na5 {[%clk 0:00:54.9]} 49... Kd6
{[%clk 0:00:03.6]} 50. Nc4+ {[%clk 0:00:55.8]} 50... Kc5 {[%clk 0:00:04]} 51.
Kc3 {[%clk 0:00:56.6]} 51... Nd4 {[%clk 0:00:04.2]} 52. b4+ {[%clk 0:00:56.7]}
52... Kd5 {[%clk 0:00:04.8]} 53. Nb6+ {[%clk 0:00:56.8]} 53... Ke5 {[%clk
0:00:04.7]} 54. Kd3 {[%clk 0:00:52]} 54... Nc6 {[%clk 0:00:05.1]} 55. Kc4 {[%clk
0:00:51.3]} 55... Kd6 {[%clk 0:00:05.5]} 56. c3 {[%clk 0:00:50.9]} 56... Kc7
{[%clk 0:00:05.8]} 57. Nd5+ {[%clk 0:00:50.9]} 57... Kb7 {[%clk 0:00:06]} 58. b5
{[%clk 0:00:51.4]} 58... Na7 {[%clk 0:00:06.3]} 59. Kc5 {[%clk 0:00:51.1]} 59...
Nc8 {[%clk 0:00:06.3]} 60. c4 {[%clk 0:00:50.6]} 60... Kb8 {[%clk 0:00:06.4]}
61. Kc6 {[%clk 0:00:49.8]} 61... Na7+ {[%clk 0:00:06.6]} 62. Kd7 {[%clk
0:00:47.8]} 62... Nc8 {[%clk 0:00:07.5]} 63. c5 {[%clk 0:00:46]} 63... Na7
{[%clk 0:00:07.8]} 64. b6 {[%clk 0:00:44.3]} 64... Nb5 {[%clk 0:00:06.9]} 65. c6
{[%clk 0:00:43.9]} 65... Ka8 {[%clk 0:00:07.6]} 66. c7 {[%clk 0:00:42.5]} 66...
Nxc7 {[%clk 0:00:03.7]} 67. bxc7 {[%clk 0:00:43.4]} 67... Ka7 {[%clk 0:00:04]}
68. Nf6 {[%clk 0:00:40.7]} 68... Kb6 {[%clk 0:00:04]} 69. c8=Q {[%clk
0:00:41.6]} 1-0

[Event "Late-Titled-Tuesday-Blitz-September-05-2023"]
[Site "Chess.com"]
[Date "2023.09.05"]
[Round "7"]
[White "PepeCuenca"]
[Black "DawidCzerw"]
[Result "1/2-1/2"]
[WhiteElo "2662"]
[BlackElo "2502"]
[TimeControl "180+1"]
[EndTime "15:18:41 PDT"]
[Termination "Game drawn by repetition"]

1. c4 {[%clk 0:03:00.9]} 1... c6 {[%clk 0:02:58.6]} 2. d4 {[%clk 0:02:56.3]}
2... d5 {[%clk 0:02:59.1]} 3. Nf3 {[%clk 0:02:56.8]} 3... Nf6 {[%clk 0:02:58.9]}
4. Qb3 {[%clk 0:02:57.5]} 4... dxc4 {[%clk 0:02:57.8]} 5. Qxc4 {[%clk
0:02:58.4]} 5... Bf5 {[%clk 0:02:58]} 6. g3 {[%clk 0:02:58.4]} 6... e6 {[%clk
0:02:58.2]} 7. Bg2 {[%clk 0:02:58.9]} 7... h6 {[%clk 0:02:58.4]} 8. O-O {[%clk
0:02:58.9]} 8... Nbd7 {[%clk 0:02:59]} 9. Nc3 {[%clk 0:02:59]} 9... Be7 {[%clk
0:02:59.5]} 10. Re1 {[%clk 0:02:55.7]} 10... Ne4 {[%clk 0:02:58.1]} 11. Qb3
{[%clk 0:02:55.9]} 11... Qb6 {[%clk 0:02:56.3]} 12. Nh4 {[%clk 0:02:55.4]} 12...
Nxc3 {[%clk 0:02:46.2]} 13. bxc3 {[%clk 0:02:43.2]} 13... Bxh4 {[%clk
0:02:37.9]} 14. gxh4 {[%clk 0:02:40.2]} 14... O-O {[%clk 0:02:35.7]} 15. e4
{[%clk 0:02:34.2]} 15... Bg6 {[%clk 0:02:34.4]} 16. Bf4 {[%clk 0:02:32.6]} 16...
Rfe8 {[%clk 0:02:22]} 17. Bd6 {[%clk 0:02:20]} 17... e5 {[%clk 0:02:16.3]} 18.
Qc4 {[%clk 0:01:50.6]} 18... Qd8 {[%clk 0:02:07.2]} 19. Rad1 {[%clk 0:01:38.5]}
19... Qxh4 {[%clk 0:02:00.3]} 20. Qb4 {[%clk 0:01:01.9]} 20... b6 {[%clk
0:01:49.3]} 21. a4 {[%clk 0:00:56.2]} 21... Bh5 {[%clk 0:01:45.1]} 22. Rd3
{[%clk 0:00:52.9]} 22... Re6 {[%clk 0:01:16.1]} 23. Rg3 {[%clk 0:00:49.4]} 23...
c5 {[%clk 0:00:33.6]} 24. dxc5 {[%clk 0:00:46.5]} 24... Nxc5 {[%clk 0:00:32.8]}
25. Bxc5 {[%clk 0:00:43.8]} 25... bxc5 {[%clk 0:00:33.7]} 26. Qxc5 {[%clk
0:00:44.2]} 26... Rd8 {[%clk 0:00:32.1]} 27. Qxa7 {[%clk 0:00:31.6]} 27... Red6
{[%clk 0:00:29.5]} 28. Qe3 {[%clk 0:00:21.7]} 28... Rd1 {[%clk 0:00:29.2]} 29.
Bf1 {[%clk 0:00:12.2]} 29... Qf4 {[%clk 0:00:23.3]} 30. Kg2 {[%clk 0:00:06.7]}
30... R1d2 {[%clk 0:00:23.2]} 31. Be2 {[%clk 0:00:04.4]} 31... Bg6 {[%clk
0:00:22.2]} 32. Bf3 {[%clk 0:00:02.6]} 32... R2d3 {[%clk 0:00:20.6]} 33. Qxf4
{[%clk 0:00:02.8]} 33... exf4 {[%clk 0:00:21.5]} 34. Rg4 {[%clk 0:00:03.3]}
34... Rxc3 {[%clk 0:00:12.4]} 35. Rxf4 {[%clk 0:00:03.8]} 35... Rc4 {[%clk
0:00:12.1]} 36. a5 {[%clk 0:00:03.9]} 36... Ra4 {[%clk 0:00:12]} 37. Bg4 {[%clk
0:00:02.6]} 37... Rxa5 {[%clk 0:00:10.2]} 38. Bf3 {[%clk 0:00:01.4]} 38... Ra4
{[%clk 0:00:10]} 39. Re2 {[%clk 0:00:01.8]} 39... Re8 {[%clk 0:00:10.1]} 40. Kg3
{[%clk 0:00:02.3]} 40... f6 {[%clk 0:00:10.2]} 41. h4 {[%clk 0:00:02.8]} 41...
h5 {[%clk 0:00:07.5]} 42. Bg2 {[%clk 0:00:02.9]} 42... Ra3+ {[%clk 0:00:06.8]}
43. Rf3 {[%clk 0:00:02.8]} 43... Ra4 {[%clk 0:00:03.8]} 44. Rfe3 {[%clk
0:00:03.4]} 44... Re7 {[%clk 0:00:02.3]} 45. f4 {[%clk 0:00:03.9]} 45... Bh7
{[%clk 0:00:01.2]} 46. f5 {[%clk 0:00:04.2]} 46... g6 {[%clk 0:00:01.1]} 47.
fxg6 {[%clk 0:00:04.6]} 47... Bxg6 {[%clk 0:00:02]} 48. Bf3 {[%clk 0:00:05.2]}
48... Kf7 {[%clk 0:00:02.2]} 49. Re1 {[%clk 0:00:05.4]} 49... Ra5 {[%clk
0:00:02.6]} 50. R1e2 {[%clk 0:00:05.5]} 50... Rae5 {[%clk 0:00:03]} 51. Kf4
{[%clk 0:00:04.9]} 51... R5e6 {[%clk 0:00:03.5]} 52. Re1 {[%clk 0:00:04.2]}
52... Re5 {[%clk 0:00:04]} 53. R1e2 {[%clk 0:00:04.2]} 53... Re8 {[%clk
0:00:04.5]} 54. Bg2 {[%clk 0:00:04.7]} 54... R8e7 {[%clk 0:00:04.8]} 55. Bh3
{[%clk 0:00:04.2]} 55... Re8 {[%clk 0:00:05.1]} 56. Bg2 {[%clk 0:00:04.3]} 56...
R8e7 {[%clk 0:00:05.6]} 57. Bf3 {[%clk 0:00:04.9]} 1/2-1/2

[Event "Late-Titled-Tuesday-Blitz-September-05-2023"]
[Site "Chess.com"]
[Date "2023.09.05"]
[Round "7"]
[White "vladislavkovalev"]
[Black "Bigfish1995"]
[Result "0-1"]
[WhiteElo "2905"]
[BlackElo "3078"]
[TimeControl "180+1"]
[EndTime "15:18:47 PDT"]
[Termination "Bigfish1995 won on time"]

1. e4 {[%clk 0:02:58.9]} 1... a6 {[%clk 0:02:37.5]} 2. d4 {[%clk 0:02:58.8]}
2... e6 {[%clk 0:02:37.8]} 3. Bd3 {[%clk 0:02:58.8]} 3... g6 {[%clk 0:02:30.6]}
4. Nf3 {[%clk 0:02:57.2]} 4... Bg7 {[%clk 0:02:30.9]} 5. O-O {[%clk 0:02:56.5]}
5... Ne7 {[%clk 0:02:31.5]} 6. Qe2 {[%clk 0:02:56.3]} 6... O-O {[%clk
0:02:30.2]} 7. c4 {[%clk 0:02:56]} 7... d6 {[%clk 0:02:29.7]} 8. Nc3 {[%clk
0:02:56.1]} 8... e5 {[%clk 0:02:25.1]} 9. dxe5 {[%clk 0:02:49.8]} 9... dxe5
{[%clk 0:02:24.2]} 10. c5 {[%clk 0:02:47]} 10... Nbc6 {[%clk 0:02:21.6]} 11. h3
{[%clk 0:01:50.7]} 11... Nd4 {[%clk 0:02:21.3]} 12. Qd1 {[%clk 0:01:43.5]} 12...
Nxf3+ {[%clk 0:02:05.7]} 13. Qxf3 {[%clk 0:01:42.2]} 13... Nc6 {[%clk
0:02:06.3]} 14. Rd1 {[%clk 0:01:28.2]} 14... Nd4 {[%clk 0:02:04.7]} 15. Qg3
{[%clk 0:01:28]} 15... Qe7 {[%clk 0:02:03.1]} 16. b4 {[%clk 0:01:27.3]} 16...
Be6 {[%clk 0:02:02.6]} 17. Bg5 {[%clk 0:01:21.9]} 17... f6 {[%clk 0:01:57.1]}
18. Be3 {[%clk 0:01:19]} 18... f5 {[%clk 0:01:54.9]} 19. Bxd4 {[%clk 0:00:49.1]}
19... f4 {[%clk 0:01:46.9]} 20. Qf3 {[%clk 0:00:44.8]} 20... exd4 {[%clk
0:01:47.1]} 21. Nd5 {[%clk 0:00:45.5]} 21... Qf7 {[%clk 0:01:47.3]} 22. a4
{[%clk 0:00:36.5]} 22... Be5 {[%clk 0:01:44]} 23. b5 {[%clk 0:00:35.6]} 23... g5
{[%clk 0:01:32.2]} 24. Rac1 {[%clk 0:00:28.4]} 24... axb5 {[%clk 0:01:29.2]} 25.
axb5 {[%clk 0:00:29.3]} 25... h5 {[%clk 0:01:26.9]} 26. Bc4 {[%clk 0:00:15.5]}
26... g4 {[%clk 0:01:11.4]} 27. hxg4 {[%clk 0:00:14.6]} 27... hxg4 {[%clk
0:01:10.2]} 28. Qb3 {[%clk 0:00:15.4]} 28... Kg7 {[%clk 0:00:57.6]} 29. f3
{[%clk 0:00:08.1]} 29... g3 {[%clk 0:00:51.8]} 30. Kf1 {[%clk 0:00:07.8]} 30...
Rh8 {[%clk 0:00:51.6]} 31. Ke2 {[%clk 0:00:07.9]} 31... Rh2 {[%clk 0:00:51.2]}
32. Rg1 {[%clk 0:00:08.5]} 32... Rd8 {[%clk 0:00:36.3]} 33. Nb4 {[%clk
0:00:07.8]} 33... d3+ {[%clk 0:00:31.2]} 34. Nxd3 {[%clk 0:00:07.5]} 34... Bxc4
{[%clk 0:00:31.7]} 35. Qxc4 {[%clk 0:00:08.4]} 35... Bd4 {[%clk 0:00:29.5]} 36.
Qxf7+ {[%clk 0:00:05.5]} 36... Kxf7 {[%clk 0:00:30.4]} 37. Nxf4 {[%clk 0:00:06]}
37... Bxg1 {[%clk 0:00:27.5]} 38. Rxg1 {[%clk 0:00:06.9]} 38... Rd4 {[%clk
0:00:26.9]} 39. Ke3 {[%clk 0:00:06.7]} 39... Rc4 {[%clk 0:00:26.2]} 40. c6
{[%clk 0:00:06.7]} 40... bxc6 {[%clk 0:00:25.9]} 41. bxc6 {[%clk 0:00:07.6]}
41... Rc3+ {[%clk 0:00:22.7]} 42. Kd4 {[%clk 0:00:07.1]} 42... Rc2 {[%clk
0:00:18.1]} 43. Ke3 {[%clk 0:00:07.2]} 43... Ke7 {[%clk 0:00:17.1]} 44. Ne2
{[%clk 0:00:07.8]} 44... Kd6 {[%clk 0:00:14.2]} 45. Rd1+ {[%clk 0:00:07.1]}
45... Kc5 {[%clk 0:00:12.5]} 46. Rd5+ {[%clk 0:00:07]} 46... Kb6 {[%clk
0:00:12.7]} 47. Nxg3 {[%clk 0:00:07.6]} 47... Rhxg2 {[%clk 0:00:13]} 48. Nf5
{[%clk 0:00:08.4]} 48... Rc3+ {[%clk 0:00:13]} 49. Kf4 {[%clk 0:00:08.2]} 49...
Rxc6 {[%clk 0:00:12.6]} 50. e5 {[%clk 0:00:06]} 50... Rc4+ {[%clk 0:00:12.3]}
51. Ke3 {[%clk 0:00:06.5]} 51... Rc3+ {[%clk 0:00:12.6]} 52. Kf4 {[%clk
0:00:06.2]} 52... Rc4+ {[%clk 0:00:12.5]} 53. Ke3 {[%clk 0:00:06.4]} 53... Rg5
{[%clk 0:00:09.1]} 54. Nd4 {[%clk 0:00:05.6]} 54... c6 {[%clk 0:00:09.4]} 55. f4
{[%clk 0:00:01.6]} 55... Rg3+ {[%clk 0:00:09.2]} 0-1